[Event "Late-Titled-Tuesday-Blitz-September-19-2023"]
[Site "Chess.com"]
[Date "2023.09.19"]
[Round "1"]
[White "AlexOstrovskiy"]
[Black "AsaHoffmann"]
[Result "1-0"]
[WhiteElo "2648"]
[BlackElo "2369"]
[TimeControl "180+1"]
[EndTime "14:06:30 PDT"]
[Termination "AlexOstrovskiy won by resignation"]

1. e4 {[%clk 0:02:55.3]} 1... d6 {[%clk 0:02:46.6]} 2. d4 {[%clk 0:02:54.8]}
2... c6 {[%clk 0:02:44.9]} 3. Nc3 {[%clk 0:02:50.5]} 3... a6 {[%clk 0:02:44.3]}
4. f4 {[%clk 0:02:48.9]} 4... d5 {[%clk 0:02:43.4]} 5. e5 {[%clk 0:02:49.5]}
5... h5 {[%clk 0:02:42.9]} 6. Nf3 {[%clk 0:02:45.9]} 6... Bg4 {[%clk 0:02:41.9]}
7. h3 {[%clk 0:02:46.4]} 7... Bxf3 {[%clk 0:02:41.2]} 8. Qxf3 {[%clk 0:02:47.3]}
8... e6 {[%clk 0:02:41.1]} 9. g3 {[%clk 0:02:46.5]} 9... g6 {[%clk 0:02:39.1]}
10. Be3 {[%clk 0:02:38.9]} 10... Qa5 {[%clk 0:02:35.9]} 11. O-O-O {[%clk
0:02:38.8]} 11... c5 {[%clk 0:02:35.6]} 12. dxc5 {[%clk 0:02:34.7]} 12... Bxc5
{[%clk 0:02:34.8]} 13. Kb1 {[%clk 0:02:09.7]} 13... Bxe3 {[%clk 0:02:22.1]} 14.
Qxe3 {[%clk 0:02:10.6]} 14... Nc6 {[%clk 0:02:21.2]} 15. Ne2 {[%clk 0:02:03.2]}
15... Nge7 {[%clk 0:02:17.6]} 16. Nd4 {[%clk 0:01:54.8]} 16... Nxd4 {[%clk
0:02:13.5]} 17. Qxd4 {[%clk 0:01:55.7]} 17... Nf5 {[%clk 0:02:13.2]} 18. Qf2
{[%clk 0:01:55.1]} 18... Rc8 {[%clk 0:02:09.2]} 19. Bd3 {[%clk 0:01:55.1]} 19...
Qc5 {[%clk 0:02:07.7]} 20. Qf3 {[%clk 0:01:27.4]} 20... Qe3 {[%clk 0:01:52]} 21.
Rhf1 {[%clk 0:01:27.4]} 21... Qxf3 {[%clk 0:01:50.9]} 22. Rxf3 {[%clk
0:01:28.3]} 22... Ke7 {[%clk 0:01:44.6]} 23. c3 {[%clk 0:01:28.3]} 23... Rc5
{[%clk 0:01:20.3]} 24. a3 {[%clk 0:01:24.5]} 24... b5 {[%clk 0:01:18.5]} 25. Rc1
{[%clk 0:01:21.3]} 25... Rb8 {[%clk 0:01:17.2]} 26. g4 {[%clk 0:01:13.2]} 26...
hxg4 {[%clk 0:01:15.5]} 27. hxg4 {[%clk 0:01:14.1]} 27... Ng7 {[%clk 0:01:13.8]}
28. Rh3 {[%clk 0:01:11.6]} 28... a5 {[%clk 0:01:06.4]} 29. b4 {[%clk 0:01:04]}
29... axb4 {[%clk 0:01:02.8]} 30. axb4 {[%clk 0:01:00.3]} 30... Rcc8 {[%clk
0:01:00]} 31. Rh7 {[%clk 0:00:51.9]} 31... Rg8 {[%clk 0:00:38.1]} 32. Kb2 {[%clk
0:00:51.5]} 32... Ne8 {[%clk 0:00:24]} 33. Ra1 {[%clk 0:00:51.5]} 33... Nc7
{[%clk 0:00:15.1]} 34. Ra7 {[%clk 0:00:51.2]} 1-0

[Event "Late-Titled-Tuesday-Blitz-September-19-2023"]
[Site "Chess.com"]
[Date "2023.09.19"]
[Round "1"]
[White "nihalsarin"]
[Black "slorovel"]
[Result "1-0"]
[WhiteElo "3104"]
[BlackElo "2506"]
[TimeControl "180+1"]
[EndTime "14:06:32 PDT"]
[Termination "nihalsarin won by resignation"]

1. e4 {[%clk 0:02:50.3]} 1... c6 {[%clk 0:02:58.7]} 2. d4 {[%clk 0:02:49.4]}
2... d5 {[%clk 0:02:59]} 3. f3 {[%clk 0:02:49.2]} 3... e6 {[%clk 0:02:56.1]} 4.
Nc3 {[%clk 0:02:45.3]} 4... Bb4 {[%clk 0:02:53.9]} 5. Bf4 {[%clk 0:02:42.5]}
5... Nf6 {[%clk 0:02:52]} 6. Qd3 {[%clk 0:02:38.7]} 6... Qa5 {[%clk 0:02:36.8]}
7. Ne2 {[%clk 0:02:35.1]} 7... b6 {[%clk 0:02:31]} 8. a3 {[%clk 0:02:25.7]} 8...
Ba6 {[%clk 0:02:26]} 9. Qe3 {[%clk 0:02:25.8]} 9... Bxe2 {[%clk 0:02:23.1]} 10.
Bxe2 {[%clk 0:02:24.7]} 10... Bxc3+ {[%clk 0:02:21.3]} 11. bxc3 {[%clk
0:02:24.6]} 11... dxe4 {[%clk 0:02:21.9]} 12. fxe4 {[%clk 0:02:25.5]} 12... Nbd7
{[%clk 0:02:14.5]} 13. O-O {[%clk 0:02:24.5]} 13... O-O {[%clk 0:02:13.5]} 14.
Bd6 {[%clk 0:02:23.1]} 14... Rfe8 {[%clk 0:02:12.4]} 15. a4 {[%clk 0:02:11.9]}
15... c5 {[%clk 0:02:01.3]} 16. Bb5 {[%clk 0:02:12.4]} 16... a6 {[%clk
0:01:57.3]} 17. Bxd7 {[%clk 0:01:48.8]} 17... Nxd7 {[%clk 0:01:56.4]} 18. Rf3
{[%clk 0:01:49.6]} 18... Rac8 {[%clk 0:01:52.2]} 19. Raf1 {[%clk 0:01:49]} 19...
f6 {[%clk 0:01:43.3]} 20. e5 {[%clk 0:01:37.6]} 20... cxd4 {[%clk 0:01:27.2]}
21. cxd4 {[%clk 0:01:38.5]} 21... Rxc2 {[%clk 0:01:23.4]} 22. exf6 {[%clk
0:01:35.3]} 22... Nxf6 {[%clk 0:01:20.7]} 23. Be5 {[%clk 0:01:35.9]} 23... Qd2
{[%clk 0:01:13.4]} 24. Qxd2 {[%clk 0:01:30.6]} 24... Rxd2 {[%clk 0:01:12.8]} 25.
Rg3 {[%clk 0:01:28.4]} 25... Nh5 {[%clk 0:01:06.9]} 26. Rg5 {[%clk 0:01:28.3]}
26... g6 {[%clk 0:01:07.4]} 27. g4 {[%clk 0:01:16.8]} 27... Ng7 {[%clk
0:01:06.2]} 28. h4 {[%clk 0:01:17.6]} 28... Rc8 {[%clk 0:01:00.5]} 29. h5 {[%clk
0:01:00.2]} 29... Rcc2 {[%clk 0:00:46.2]} 30. hxg6 {[%clk 0:00:59.2]} 30... h6
{[%clk 0:00:45]} 31. Bd6 {[%clk 0:00:59.5]} 31... Nf5 {[%clk 0:00:38.8]} 32.
gxf5 {[%clk 0:00:53.3]} 32... hxg5 {[%clk 0:00:38.9]} 33. f6 {[%clk 0:00:53.7]}
33... Rc8 {[%clk 0:00:25.8]} 34. Be5 {[%clk 0:00:48.6]} 1-0

[Event "Late-Titled-Tuesday-Blitz-September-19-2023"]
[Site "Chess.com"]
[Date "2023.09.19"]
[Round "1"]
[White "Misticpikachu"]
[Black "tarno17"]
[Result "1-0"]
[WhiteElo "2535"]
[BlackElo "2170"]
[TimeControl "180+1"]
[EndTime "14:06:34 PDT"]
[Termination "Misticpikachu won on time"]

1. c4 {[%clk 0:02:58.6]} 1... e5 {[%clk 0:03:00.1]} 2. Nc3 {[%clk 0:02:57.3]}
2... Nf6 {[%clk 0:02:56.9]} 3. Nf3 {[%clk 0:02:57.9]} 3... d6 {[%clk 0:02:54.7]}
4. g3 {[%clk 0:02:56.9]} 4... g6 {[%clk 0:02:54.7]} 5. Bg2 {[%clk 0:02:57.1]}
5... Bg7 {[%clk 0:02:55.5]} 6. O-O {[%clk 0:02:57.8]} 6... O-O {[%clk
0:02:55.9]} 7. d4 {[%clk 0:02:58.5]} 7... exd4 {[%clk 0:02:47.7]} 8. Nxd4 {[%clk
0:02:59.4]} 8... Nbd7 {[%clk 0:02:45.6]} 9. b3 {[%clk 0:02:58.9]} 9... Ne5
{[%clk 0:02:37.9]} 10. Bb2 {[%clk 0:02:58.9]} 10... Rb8 {[%clk 0:02:36.3]} 11.
Qd2 {[%clk 0:02:55.9]} 11... Bd7 {[%clk 0:02:22.7]} 12. Rfd1 {[%clk 0:02:56.2]}
12... Qe7 {[%clk 0:02:22.1]} 13. Rac1 {[%clk 0:02:55.3]} 13... Rfe8 {[%clk
0:02:21.6]} 14. e3 {[%clk 0:02:41.9]} 14... a6 {[%clk 0:01:57.4]} 15. h3 {[%clk
0:02:02.2]} 15... h5 {[%clk 0:01:53.8]} 16. Nd5 {[%clk 0:01:53.7]} 16... Nxd5
{[%clk 0:01:45.5]} 17. cxd5 {[%clk 0:01:54.6]} 17... c5 {[%clk 0:01:31]} 18.
dxc6 {[%clk 0:01:53.8]} 18... bxc6 {[%clk 0:01:31.1]} 19. f4 {[%clk 0:01:45.4]}
19... c5 {[%clk 0:01:19.1]} 20. fxe5 {[%clk 0:01:45.2]} 20... cxd4 {[%clk
0:01:19.4]} 21. exd4 {[%clk 0:01:36.2]} 21... dxe5 {[%clk 0:00:56.9]} 22. dxe5
{[%clk 0:01:37.1]} 22... Bf5 {[%clk 0:00:57.6]} 23. Re1 {[%clk 0:01:27.6]} 23...
Rbd8 {[%clk 0:00:54.5]} 24. Qf4 {[%clk 0:01:18.8]} 24... Kh7 {[%clk 0:00:50.1]}
25. Rc6 {[%clk 0:01:12.2]} 25... Bh6 {[%clk 0:00:44.7]} 26. Qc4 {[%clk
0:01:11.6]} 26... Rd2 {[%clk 0:00:44.3]} 27. Rc7 {[%clk 0:01:05.2]} 27... Bd7
{[%clk 0:00:25.7]} 28. e6 {[%clk 0:00:54.8]} 28... fxe6 {[%clk 0:00:12.6]} 29.
Qc3 {[%clk 0:00:54.3]} 29... Rxg2+ {[%clk 0:00:06.4]} 30. Kxg2 {[%clk
0:00:52.5]} 30... Rd8 {[%clk 0:00:05]} 31. Rd1 {[%clk 0:00:44.6]} 31... Bc6+
{[%clk 0:00:03.5]} 32. Qxc6 {[%clk 0:00:44.9]} 1-0

[Event "Late-Titled-Tuesday-Blitz-September-19-2023"]
[Site "Chess.com"]
[Date "2023.09.19"]
[Round "1"]
[White "amanmuhammethommadov"]
[Black "matagordo"]
[Result "1-0"]
[WhiteElo "2541"]
[BlackElo "2210"]
[TimeControl "180+1"]
[EndTime "14:06:35 PDT"]
[Termination "amanmuhammethommadov won by resignation"]

1. e4 {[%clk 0:03:00]} 1... e6 {[%clk 0:02:54.5]} 2. d4 {[%clk 0:03:00.2]} 2...
d5 {[%clk 0:02:53.6]} 3. e5 {[%clk 0:03:00.8]} 3... c5 {[%clk 0:02:53.4]} 4. c3
{[%clk 0:03:01.7]} 4... Nc6 {[%clk 0:02:53.8]} 5. Nf3 {[%clk 0:03:02.1]} 5...
Nh6 {[%clk 0:02:53.2]} 6. Bd3 {[%clk 0:03:00.9]} 6... Nf5 {[%clk 0:02:52]} 7.
Bxf5 {[%clk 0:03:00]} 7... exf5 {[%clk 0:02:52.9]} 8. Be3 {[%clk 0:02:57]} 8...
Qb6 {[%clk 0:02:50.5]} 9. Qd2 {[%clk 0:02:57.2]} 9... h6 {[%clk 0:02:47.6]} 10.
h4 {[%clk 0:02:57.2]} 10... Be6 {[%clk 0:02:47.6]} 11. a3 {[%clk 0:02:57]} 11...
Na5 {[%clk 0:02:40.5]} 12. dxc5 {[%clk 0:02:55.8]} 12... Qc7 {[%clk 0:02:29.7]}
13. Nd4 {[%clk 0:02:48.4]} 13... Nc4 {[%clk 0:02:16.1]} 14. Qe2 {[%clk
0:02:48.1]} 14... Qxe5 {[%clk 0:02:14.6]} 15. b4 {[%clk 0:02:42.1]} 15... Be7
{[%clk 0:01:53.1]} 16. Bc1 {[%clk 0:02:36]} 16... Qxe2+ {[%clk 0:01:47.9]} 17.
Kxe2 {[%clk 0:02:28.1]} 17... Bf6 {[%clk 0:01:48]} 18. Nd2 {[%clk 0:02:26.5]}
18... O-O {[%clk 0:01:35.9]} 19. N2f3 {[%clk 0:02:19.3]} 19... Rfe8 {[%clk
0:01:35.7]} 20. Kd3 {[%clk 0:02:18.6]} 20... g6 {[%clk 0:01:30.4]} 21. Bxh6
{[%clk 0:02:17.8]} 21... Kh7 {[%clk 0:01:30.4]} 22. Bg5 {[%clk 0:02:15.2]} 22...
Kg7 {[%clk 0:01:28.2]} 23. Bxf6+ {[%clk 0:02:13.7]} 23... Kxf6 {[%clk
0:01:29.1]} 24. Rae1 {[%clk 0:02:14.3]} 24... Nxa3 {[%clk 0:01:26.2]} 25. h5
{[%clk 0:01:56.5]} 25... g5 {[%clk 0:01:16.9]} 26. h6 {[%clk 0:01:51.9]} 26...
Nc4 {[%clk 0:01:08.5]} 27. h7 {[%clk 0:01:47.8]} 27... Rh8 {[%clk 0:01:04]} 28.
Nxe6 {[%clk 0:01:26.3]} 28... fxe6 {[%clk 0:01:02.3]} 29. Rh6+ {[%clk
0:01:26.9]} 29... Kg7 {[%clk 0:00:54.7]} 30. Rexe6 {[%clk 0:01:25.5]} 30... Rxh7
{[%clk 0:00:27.3]} 31. Reg6+ {[%clk 0:01:21]} 31... Kh8 {[%clk 0:00:27.7]} 32.
Nxg5 {[%clk 0:01:20.4]} 32... Rxh6 {[%clk 0:00:25.4]} 33. Rxh6+ {[%clk
0:01:21.3]} 33... Kg8 {[%clk 0:00:26]} 34. Rg6+ {[%clk 0:01:12.1]} 34... Kh8
{[%clk 0:00:21.5]} 35. Rf6 {[%clk 0:01:10]} 35... Re8 {[%clk 0:00:14.1]} 36.
Rxf5 {[%clk 0:01:09.1]} 36... Re1 {[%clk 0:00:13.9]} 37. Rxd5 {[%clk 0:01:05.3]}
37... Ne5+ {[%clk 0:00:07.7]} 38. Kd2 {[%clk 0:01:04.2]} 38... Re4 {[%clk
0:00:06.1]} 39. Nxe4 {[%clk 0:01:03.4]} 1-0

[Event "Late-Titled-Tuesday-Blitz-September-19-2023"]
[Site "Chess.com"]
[Date "2023.09.19"]
[Round "1"]
[White "angelgab3"]
[Black "MajorCoast"]
[Result "1-0"]
[WhiteElo "2566"]
[BlackElo "2276"]
[TimeControl "180+1"]
[EndTime "14:06:36 PDT"]
[Termination "angelgab3 won by resignation"]

1. e4 {[%clk 0:02:53.7]} 1... d5 {[%clk 0:02:58.6]} 2. exd5 {[%clk 0:02:53.6]}
2... Qxd5 {[%clk 0:02:59.5]} 3. Nc3 {[%clk 0:02:54]} 3... Qd6 {[%clk 0:02:59.7]}
4. d4 {[%clk 0:02:54.4]} 4... Nf6 {[%clk 0:02:58.6]} 5. Nf3 {[%clk 0:02:54.9]}
5... c6 {[%clk 0:02:58.5]} 6. Ne5 {[%clk 0:02:50.9]} 6... Nbd7 {[%clk
0:02:56.4]} 7. Nc4 {[%clk 0:02:51.2]} 7... Qc7 {[%clk 0:02:55.4]} 8. Qf3 {[%clk
0:02:51.3]} 8... Nb6 {[%clk 0:02:53]} 9. Bf4 {[%clk 0:02:49]} 9... Qd7 {[%clk
0:02:40.9]} 10. Be5 {[%clk 0:02:28.1]} 10... Qf5 {[%clk 0:02:27]} 11. Qd1 {[%clk
0:01:59]} 11... Be6 {[%clk 0:02:17.5]} 12. Bd3 {[%clk 0:01:58.1]} 12... Qg5
{[%clk 0:02:11.3]} 13. Ne3 {[%clk 0:01:55.8]} 13... Ng4 {[%clk 0:02:02.8]} 14.
h4 {[%clk 0:01:49.4]} 14... Nxe3 {[%clk 0:01:38.6]} 15. hxg5 {[%clk 0:01:48.6]}
15... Nxd1 {[%clk 0:01:38.7]} 16. Rxd1 {[%clk 0:01:49.5]} 16... h6 {[%clk
0:01:27.2]} 17. a4 {[%clk 0:01:39.2]} 17... Nc4 {[%clk 0:01:10.4]} 18. b3 {[%clk
0:01:14.6]} 18... Nb2 {[%clk 0:01:01.5]} 19. Rd2 {[%clk 0:01:08.3]} 19... Nxd3+
{[%clk 0:01:01.8]} 20. Rxd3 {[%clk 0:01:09.2]} 20... f6 {[%clk 0:00:57.6]} 21.
gxf6 {[%clk 0:01:01.3]} 21... exf6 {[%clk 0:00:57.7]} 22. Bg3 {[%clk 0:01:00.5]}
22... Kf7 {[%clk 0:00:57.8]} 23. O-O {[%clk 0:00:58.3]} 23... Bf5 {[%clk
0:00:53.7]} 24. Rf3 {[%clk 0:00:53.5]} 24... Bxc2 {[%clk 0:00:51.8]} 25. d5
{[%clk 0:00:54.2]} 25... cxd5 {[%clk 0:00:44.5]} 26. Rc1 {[%clk 0:00:54.5]}
26... Bxb3 {[%clk 0:00:38.2]} 27. Nb5 {[%clk 0:00:54.6]} 27... Bxa4 {[%clk
0:00:35.8]} 28. Nc7 {[%clk 0:00:54.3]} 28... Bc6 {[%clk 0:00:31.5]} 29. Nxa8
{[%clk 0:00:52.5]} 29... Ba3 {[%clk 0:00:27.5]} 30. Rxa3 {[%clk 0:00:51.7]}
30... Rxa8 {[%clk 0:00:26.5]} 31. f3 {[%clk 0:00:51.9]} 31... a5 {[%clk
0:00:17.3]} 32. Be1 {[%clk 0:00:51.7]} 32... a4 {[%clk 0:00:16.8]} 33. Bb4
{[%clk 0:00:48.9]} 33... Ra6 {[%clk 0:00:16.5]} 34. Re3 {[%clk 0:00:48.6]} 34...
b5 {[%clk 0:00:16.1]} 35. Re7+ {[%clk 0:00:47.6]} 35... Kg6 {[%clk 0:00:16.1]}
36. Re6 {[%clk 0:00:48.2]} 36... a3 {[%clk 0:00:14.4]} 37. Rexc6 {[%clk
0:00:47.4]} 37... Rxc6 {[%clk 0:00:13.7]} 38. Rxc6 {[%clk 0:00:48.3]} 38... a2
{[%clk 0:00:14.6]} 39. Ra6 {[%clk 0:00:48.7]} 39... a1=Q+ {[%clk 0:00:14.3]} 40.
Rxa1 {[%clk 0:00:49.6]} 1-0

[Event "Late-Titled-Tuesday-Blitz-September-19-2023"]
[Site "Chess.com"]
[Date "2023.09.19"]
[Round "1"]
[White "jefferyx"]
[Black "guillembaches"]
[Result "1-0"]
[WhiteElo "3004"]
[BlackElo "2501"]
[TimeControl "180+1"]
[EndTime "14:06:38 PDT"]
[Termination "jefferyx won on time"]

1. e4 {[%clk 0:03:00.9]} 1... d5 {[%clk 0:02:59]} 2. exd5 {[%clk 0:03:00.8]}
2... Qxd5 {[%clk 0:02:59.9]} 3. Nc3 {[%clk 0:03:01.1]} 3... Qa5 {[%clk
0:02:58.9]} 4. d4 {[%clk 0:03:01.3]} 4... Nf6 {[%clk 0:02:58.7]} 5. Bc4 {[%clk
0:03:00.7]} 5... Bg4 {[%clk 0:02:56.8]} 6. f3 {[%clk 0:02:57.6]} 6... Bd7 {[%clk
0:02:56.7]} 7. Ne2 {[%clk 0:02:56.8]} 7... e6 {[%clk 0:02:56.7]} 8. Bf4 {[%clk
0:02:45.7]} 8... Bd6 {[%clk 0:02:49.6]} 9. Qd2 {[%clk 0:02:44.7]} 9... O-O
{[%clk 0:02:41.2]} 10. O-O-O {[%clk 0:02:43.8]} 10... Nc6 {[%clk 0:02:25]} 11.
Kb1 {[%clk 0:02:43.6]} 11... Rad8 {[%clk 0:02:02.2]} 12. Bg5 {[%clk 0:02:41.1]}
12... Be7 {[%clk 0:01:58.1]} 13. Bb3 {[%clk 0:02:35.9]} 13... Qb6 {[%clk
0:01:49.4]} 14. d5 {[%clk 0:02:23.6]} 14... Na5 {[%clk 0:01:32.7]} 15. Nf4
{[%clk 0:02:17.9]} 15... Nxb3 {[%clk 0:01:28.5]} 16. axb3 {[%clk 0:02:18.8]}
16... h6 {[%clk 0:01:20.7]} 17. Bxf6 {[%clk 0:02:08.1]} 17... Bxf6 {[%clk
0:01:20]} 18. Ne4 {[%clk 0:02:09]} 18... Be5 {[%clk 0:01:12.8]} 19. dxe6 {[%clk
0:02:08.3]} 19... Bxe6 {[%clk 0:01:10.6]} 20. Qxd8 {[%clk 0:02:07.8]} 20... Rxd8
{[%clk 0:01:08.8]} 21. Rxd8+ {[%clk 0:02:08.7]} 21... Kh7 {[%clk 0:01:09.1]} 22.
Nxe6 {[%clk 0:02:01.2]} 22... Qxe6 {[%clk 0:01:02.7]} 23. Rhd1 {[%clk
0:02:01.7]} 23... b6 {[%clk 0:00:57.3]} 24. g3 {[%clk 0:01:58.3]} 24... f5
{[%clk 0:00:54.2]} 25. Nc3 {[%clk 0:01:58.3]} 25... Bd6 {[%clk 0:00:47.3]} 26.
Ka2 {[%clk 0:01:41]} 26... Qe7 {[%clk 0:00:41.4]} 27. Ra8 {[%clk 0:01:40.6]}
27... a5 {[%clk 0:00:40.7]} 28. Rd5 {[%clk 0:01:40.5]} 28... f4 {[%clk
0:00:28.1]} 29. g4 {[%clk 0:01:39.6]} 29... Qe3 {[%clk 0:00:24.4]} 30. Rd3
{[%clk 0:01:31]} 30... Qf2 {[%clk 0:00:24.2]} 31. Ne4 {[%clk 0:01:31.9]} 31...
Qxc2 {[%clk 0:00:21.3]} 32. Rc3 {[%clk 0:01:32.5]} 32... Qxh2 {[%clk 0:00:19.8]}
33. Nxd6 {[%clk 0:01:33.1]} 33... cxd6 {[%clk 0:00:20.1]} 34. Ra7 {[%clk
0:01:34]} 34... Kg6 {[%clk 0:00:15.8]} 35. Rd7 {[%clk 0:01:33.1]} 35... Kg5
{[%clk 0:00:15.7]} 36. Rxd6 {[%clk 0:01:33.3]} 36... Kh4 {[%clk 0:00:13.3]} 37.
Rxb6 {[%clk 0:01:33.4]} 37... Kg3 {[%clk 0:00:10.1]} 38. Rb5 {[%clk 0:01:33.6]}
38... g5 {[%clk 0:00:08.7]} 39. Rxa5 {[%clk 0:01:33.8]} 39... Qe2 {[%clk
0:00:08.4]} 40. b4 {[%clk 0:01:32]} 40... Qe6+ {[%clk 0:00:05.8]} 41. Ka3 {[%clk
0:01:32.4]} 41... h5 {[%clk 0:00:05.5]} 42. gxh5 {[%clk 0:01:27.8]} 42... g4
{[%clk 0:00:04]} 43. fxg4+ {[%clk 0:01:28.7]} 43... f3 {[%clk 0:00:03.6]} 44. g5
{[%clk 0:01:27.6]} 44... Kg2 {[%clk 0:00:02.4]} 45. g6 {[%clk 0:01:28.2]} 45...
f2 {[%clk 0:00:02.3]} 46. Rg5+ {[%clk 0:01:28.9]} 46... Kh2 {[%clk 0:00:01.7]}
47. Rf3 {[%clk 0:01:28.3]} 1-0

[Event "Late-Titled-Tuesday-Blitz-September-19-2023"]
[Site "Chess.com"]
[Date "2023.09.19"]
[Round "1"]
[White "tdf98pantani"]
[Black "RIPOL"]
[Result "1-0"]
[WhiteElo "2716"]
[BlackElo "2429"]
[TimeControl "180+1"]
[EndTime "14:06:45 PDT"]
[Termination "tdf98pantani won by resignation"]

1. d4 {[%clk 0:02:55.2]} 1... Nf6 {[%clk 0:02:58.5]} 2. c4 {[%clk 0:02:54.6]}
2... e6 {[%clk 0:02:58]} 3. Nf3 {[%clk 0:02:53.7]} 3... d5 {[%clk 0:02:56.9]} 4.
Nc3 {[%clk 0:02:51.1]} 4... Bb4 {[%clk 0:02:54.7]} 5. Qa4+ {[%clk 0:02:50.2]}
5... Nc6 {[%clk 0:02:53.7]} 6. e3 {[%clk 0:02:45.9]} 6... a6 {[%clk 0:02:51.2]}
7. Qc2 {[%clk 0:02:45.1]} 7... O-O {[%clk 0:02:49.1]} 8. Bd2 {[%clk 0:02:44.2]}
8... Re8 {[%clk 0:02:23.4]} 9. Bd3 {[%clk 0:02:35]} 9... dxc4 {[%clk 0:02:20.3]}
10. Bxc4 {[%clk 0:02:34.8]} 10... Bd6 {[%clk 0:02:19.6]} 11. O-O {[%clk
0:02:08.2]} 11... b5 {[%clk 0:02:12]} 12. Bb3 {[%clk 0:01:58.3]} 12... Bb7
{[%clk 0:01:35.4]} 13. e4 {[%clk 0:01:52.8]} 13... e5 {[%clk 0:01:07.7]} 14.
dxe5 {[%clk 0:00:38.8]} 14... Nxe5 {[%clk 0:01:05.2]} 15. Nxe5 {[%clk 0:00:39]}
15... Bxe5 {[%clk 0:01:04.1]} 16. f3 {[%clk 0:00:38.8]} 16... c5 {[%clk
0:00:56.3]} 17. a3 {[%clk 0:00:33.1]} 17... c4 {[%clk 0:00:55.1]} 18. Ba2 {[%clk
0:00:33.3]} 18... Qb6+ {[%clk 0:00:48.5]} 19. Kh1 {[%clk 0:00:32.4]} 19... Rad8
{[%clk 0:00:47.1]} 20. Rad1 {[%clk 0:00:31.9]} 20... Rd3 {[%clk 0:00:36]} 21.
Bb1 {[%clk 0:00:31.5]} 21... Red8 {[%clk 0:00:24.3]} 22. Qc1 {[%clk 0:00:31.7]}
22... R3d7 {[%clk 0:00:22.5]} 23. Be3 {[%clk 0:00:23.6]} 23... Bd4 {[%clk
0:00:20.3]} 24. Rxd4 {[%clk 0:00:20.2]} 24... Rxd4 {[%clk 0:00:19.9]} 25. Ne2
{[%clk 0:00:20.7]} 25... Rd1 {[%clk 0:00:11]} 26. Bxb6 {[%clk 0:00:16.3]} 1-0

[Event "Late-Titled-Tuesday-Blitz-September-19-2023"]
[Site "Chess.com"]
[Date "2023.09.19"]
[Round "1"]
[White "komogro"]
[Black "SantoBlue"]
[Result "0-1"]
[WhiteElo "2495"]
[BlackElo "2946"]
[TimeControl "180+1"]
[EndTime "14:06:47 PDT"]
[Termination "SantoBlue won on time"]

1. Nf3 {[%clk 0:02:57.6]} 1... c5 {[%clk 0:02:59.3]} 2. g3 {[%clk 0:02:57]} 2...
Nc6 {[%clk 0:02:59.4]} 3. Bg2 {[%clk 0:02:57.9]} 3... g6 {[%clk 0:02:59.7]} 4.
O-O {[%clk 0:02:58.6]} 4... Bg7 {[%clk 0:03:00.4]} 5. d3 {[%clk 0:02:57.4]} 5...
d5 {[%clk 0:03:00]} 6. c3 {[%clk 0:02:57.7]} 6... Bg4 {[%clk 0:02:59.8]} 7. Nbd2
{[%clk 0:02:58.6]} 7... e6 {[%clk 0:02:59.8]} 8. Ne1 {[%clk 0:02:45.3]} 8... e5
{[%clk 0:02:55.3]} 9. h3 {[%clk 0:02:29.5]} 9... Be6 {[%clk 0:02:54.7]} 10. e4
{[%clk 0:02:29.6]} 10... Nge7 {[%clk 0:02:54.5]} 11. Nc2 {[%clk 0:02:24.7]}
11... Qd7 {[%clk 0:02:54.1]} 12. Kh2 {[%clk 0:02:24.2]} 12... O-O {[%clk
0:02:46.6]} 13. Qe2 {[%clk 0:02:23]} 13... Rad8 {[%clk 0:02:45.4]} 14. a4 {[%clk
0:02:15.9]} 14... b6 {[%clk 0:02:43.6]} 15. exd5 {[%clk 0:02:03.4]} 15... Bxd5
{[%clk 0:02:41.6]} 16. Ne4 {[%clk 0:02:03.4]} 16... f5 {[%clk 0:02:35.4]} 17.
Ng5 {[%clk 0:02:03.2]} 17... Bxg2 {[%clk 0:02:34.9]} 18. Kxg2 {[%clk 0:02:03.9]}
18... h6 {[%clk 0:02:32.8]} 19. Nf3 {[%clk 0:01:56.5]} 19... Qxd3 {[%clk
0:02:32.6]} 20. Qxd3 {[%clk 0:01:42.7]} 20... Rxd3 {[%clk 0:02:33.5]} 21. Ne3
{[%clk 0:01:41.5]} 21... e4 {[%clk 0:02:30.1]} 22. Ne1 {[%clk 0:01:41.2]} 22...
Rd7 {[%clk 0:02:30.6]} 23. Nc4 {[%clk 0:01:41.4]} 23... g5 {[%clk 0:02:29.4]}
24. Nc2 {[%clk 0:01:39.4]} 24... f4 {[%clk 0:02:29.7]} 25. Re1 {[%clk
0:01:33.8]} 25... f3+ {[%clk 0:02:30]} 26. Kf1 {[%clk 0:01:34.4]} 26... Ng6
{[%clk 0:02:02.6]} 27. Rxe4 {[%clk 0:01:34]} 27... Nce5 {[%clk 0:01:49]} 28.
Nxe5 {[%clk 0:01:28.5]} 28... Nxe5 {[%clk 0:01:49.9]} 29. Ne3 {[%clk 0:01:27.6]}
29... Rfd8 {[%clk 0:01:46.8]} 30. Kg1 {[%clk 0:00:41.1]} 30... h5 {[%clk
0:01:42.4]} 31. g4 {[%clk 0:00:41.2]} 31... h4 {[%clk 0:01:38.7]} 32. a5 {[%clk
0:00:34.7]} 32... Ng6 {[%clk 0:01:38.3]} 33. axb6 {[%clk 0:00:28]} 33... axb6
{[%clk 0:01:39.2]} 34. Nf5 {[%clk 0:00:24.1]} 34... Rd1+ {[%clk 0:01:38]} 35.
Kh2 {[%clk 0:00:24.4]} 35... Rf1 {[%clk 0:01:29.3]} 36. Ra7 {[%clk 0:00:18.3]}
36... Rxf2+ {[%clk 0:01:28.4]} 37. Kg1 {[%clk 0:00:18.9]} 37... Rg2+ {[%clk
0:01:29]} 38. Kf1 {[%clk 0:00:19.6]} 38... Rd1+ {[%clk 0:01:27.3]} 39. Re1
{[%clk 0:00:20.2]} 39... Rxe1+ {[%clk 0:01:24.8]} 40. Kxe1 {[%clk 0:00:20.6]}
40... Be5 {[%clk 0:01:20.6]} 41. Bxg5 {[%clk 0:00:11.1]} 41... Bg3+ {[%clk
0:01:17.9]} 42. Nxg3 {[%clk 0:00:11.2]} 42... hxg3 {[%clk 0:01:17.1]} 43. Be3
{[%clk 0:00:08.3]} 43... Re2+ {[%clk 0:01:17.1]} 0-1